bitfinex/quotes_ETHUSD_20241023
["timestamp","ask_amount","ask_price","bid_price","bid_amount"]
[1729688482868,3.89263,2569.0,2568.6,0.05838932]
[1729688483042,1.74421953,2568.8,2568.7,0.7634]
[1729688486241,1.74421953,2568.9,2568.7,0.7634]
[1729688486430,1.74421953,2568.8,2568.7,0.7634]
[1729688486633,3.0,2569.4,2568.7,0.7634]
[1729688486634,3.89219,2569.3,2568.8,3.89285]
[1729688486829,3.89219,2569.3,2568.7,1.229061]
[1729688486830,3.89238,2569.2,2568.7,1.229061]
[1729688487063,1.74421953,2569.0,2568.7,5.122051]
[1729688487576,1.74421953,2568.9,2568.7,1.229061]
[1729688487872,1.74421953,2568.9,2568.7,0.7634]
[1729688488046,1.74421953,2568.8,2568.7,0.7634]
[1729688488669,1.74421953,2568.9,2568.7,0.7634]
[1729688489770,1.74421953,2568.9,2568.7,4.65639]
[1729688489975,1.74421953,2568.9,2568.7,0.7634]
[1729688490329,1.74421953,2568.9,2568.7,1.229055]
[1729688490737,3.89228,2569.2,2568.7,5.121955]
[1729688490950,1.74421953,2569.1,2568.8,3.89285]
[1729688491277,1.74421953,2569.0,2568.7,5.122045]
[1729688491767,3.89228,2569.2,2568.7,5.122045]
[1729688491973,1.74421953,2569.0,2568.7,5.122045]
[1729688493035,1.74421953,2569.0,2568.7,5.121995]
[1729688493241,1.74421953,2569.1,2568.7,5.121995]
[1729688493467,1.74421953,2569.1,2568.7,9.014925]
[1729688494273,1.74421953,2569.0,2568.7,5.121985]
[1729688494854,1.74421953,2569.3,2568.9,3.89257]
[1729688495041,1.74421953,2569.2,2568.9,3.89257]
[1729688495380,3.89213,2569.3,2568.8,5.1585385]
[1729688495381,1.74421953,2569.1,2568.8,5.1585385]
[1729688495685,1.74421953,2569.1,2568.9,3.89268]
[1729688495982,1.74421953,2569.3,2569.0,3.89249]
[1729688496186,1.74421953,2569.2,2569.0,3.89249]
[1729688496931,1.74421953,2569.2,2568.9,4.79780185]
[1729688497879,1.74421953,2569.2,2569.0,3.89248]
[1729688498080,1.74421953,2569.2,2568.9,4.79775185]
[1729688498437,1.74421953,2569.1,2568.9,4.79775185]
[1729688498666,1.74421953,2569.0,2568.8,5.1585385]
[1729688498837,1.74421953,2569.1,2568.8,5.1585385]
[1729688499051,1.74421953,2569.0,2568.8,0.7535]
[1729688499584,1.74421953,2569.0,2568.8,4.64632]
[1729688500896,1.74421953,2569.1,2568.8,4.64632]
[1729688501351,1.74421953,2569.1,2568.8,4.64628]
[1729688502340,1.74421953,2569.1,2568.9,3.8927]
[1729688502546,1.74421953,2569.2,2568.8,4.64628]
[1729688502876,1.74421953,2569.1,2568.8,4.64628]
[1729688503451,1.74421953,2569.1,2568.8,8.53908]
[1729688505583,1.74421953,2569.1,2568.9,3.89271]
[1729688506002,1.74421953,2569.0,2568.8,4.64628]
[1729688507072,1.74421953,2569.0,2568.8,0.7535]
[1729688507474,1.74421953,2569.0,2568.7,3.89291]
[1729688508011,1.74421953,2569.0,2568.8,3.89279]
[1729688508397,1.74421953,2569.1,2568.8,3.89279]
[1729688510021,1.74421953,2569.1,2568.9,3.89265]
[1729688511784,1.74421953,2569.2,2569.0,3.89255]
[1729688512015,1.74421953,2569.5,2569.2,3.89217]
[1729688512217,1.74421953,2569.4,2569.2,3.89217]
[1729688512627,4.29809055,2569.6,2569.3,3.8921]
[1729688512628,1.74421953,2569.5,2569.3,3.8921]
[1729688513015,2.15065008,2569.6,2569.3,3.89204]
[1729688513220,2.15065008,2569.6,2569.4,3.89195]
[1729688513454,1.74421953,2569.6,2569.4,3.89195]
[1729688513661,0.60925622,2569.7,2569.6,3.89165]
[1729688513960,0.60925622,2569.7,2569.6,6.45656953]
[1729688514262,1.74421953,2570.3,2570.0,3.89097]
[1729688515031,5.63481953,2570.3,2569.9,3.8912]
[1729688515336,1.74421953,2570.4,2570.0,3.89096]
[1729688515560,1.74421953,2570.4,2570.1,0.7929]
[1729688515859,1.74421953,2570.6,2570.2,3.89073]
[1729688516164,1.74421953,2570.3,2570.1,0.7929]
[1729688516460,3.89036,2570.5,2570.1,0.7929]
[1729688517433,0.55,2570.6,2570.2,3.89074]
[1729688517766,7.78052,2570.6,2570.1,5.152167]
[1729688518053,3.89026,2570.6,2570.1,5.152167]
[1729688518219,7.78049,2570.6,2570.1,5.152167]
[1729688518730,3.89031,2570.5,2570.1,1.261287]
[1729688518945,3.89031,2570.5,2570.1,0.7929]
[1729688519148,3.89023,2570.6,2570.1,4.68379]
[1729688519723,7.78046,2570.6,2570.1,4.68379]
[1729688520238,3.89023,2570.6,2570.1,4.68379]
[1729688520449,3.89023,2570.6,2570.1,0.7929]
[1729688520450,3.89031,2570.5,2570.1,0.7929]
[1729688520619,3.89047,2570.4,2570.1,0.7929]
[1729688520973,3.89047,2570.4,2569.9,0.05836388]
[1729688520974,7.43642042,2569.9,2569.4,0.7889]
[1729688521267,3.89151,2569.7,2569.4,0.7889]
[1729688521923,7.78313,2569.7,2569.4,0.7889]
[1729688522123,3.54507042,2569.6,2569.2,0.8187]
[1729688522361,3.89188,2569.5,2569.2,0.8187]
[1729688525577,3.89204,2569.4,2569.1,0.05838243]
[1729688526079,3.89188,2569.5,2569.1,0.05838243]
[1729688527941,7.78377,2569.5,2569.1,0.05838243]
[1729688528248,3.89188,2569.5,2569.1,0.05838243]
[1729688528457,7.43733042,2569.2,2568.5,3.89323]
[1729688528697,3.89265,2569.0,2568.5,3.89323]
[1729688528862,3.89265,2569.0,2568.5,4.751263]
[1729688529067,3.89271,2568.9,2568.5,0.858033]
[1729688529558,3.89271,2568.9,2568.5,0.91642605]
[1729688529768,3.89295,2568.8,2568.5,0.05839305]
[1729688530861,3.89307,2568.7,2568.5,0.05839305]
[1729688531275,3.89317,2568.6,2568.5,0.05839305]
[1729688531799,3.89307,2568.7,2568.5,0.05839305]
[1729688532666,3.89278,2568.9,2568.5,0.05839305]
[1729688532667,3.89288,2568.8,2568.5,0.05839305]
[1729688532869,3.89278,2568.9,2568.5,0.05839305]
[1729688533090,3.89258,2569.0,2568.6,0.7969]
[1729688533394,3.89249,2569.1,2568.6,0.7969]
[1729688533699,3.89286,2568.8,2568.6,0.7969]
[1729688534057,3.89258,2569.0,2568.6,0.7969]
[1729688534304,3.89272,2568.9,2568.6,0.7969]
[1729688536916,7.29856945,2569.3,2568.6,0.7969]
[1729688536917,3.89244,2569.1,2568.6,0.7969]
[1729688537071,3.89228,2569.2,2568.7,3.89299]
[1729688537272,3.89243,2569.1,2568.7,3.89299]
[1729688537473,3.89243,2569.1,2568.8,0.90577953]
[1729688537993,3.89233,2569.2,2568.8,0.90577953]
[1729688538159,0.40645945,2569.3,2569.0,0.8297]
[1729688538363,4.29864945,2569.3,2569.0,0.8297]
[1729688539010,0.40645945,2569.3,2569.1,3.89239]
[1729688539194,0.40645945,2569.3,2569.1,0.861472]
[1729688539370,3.89182,2569.5,2569.1,4.753792]
[1729688540488,7.78372,2569.5,2569.1,0.861472]
[1729688540801,7.78371,2569.5,2569.1,0.861472]
[1729688540980,3.89182,2569.5,2569.1,0.861472]
[1729688542011,3.89195,2569.4,2569.1,0.861472]
[1729688543306,0.55,2569.6,2569.2,0.05837338]
[1729688543503,4.29794669,2569.7,2569.3,4.6482]
[1729688543704,4.29794669,2569.7,2569.3,0.7561]
[1729688543877,3.89154,2569.7,2569.3,0.7561]
[1729688544082,3.89154,2569.7,2569.3,4.64819]
[1729688544281,3.89154,2569.7,2569.3,1.67183256]
[1729688544620,7.78315,2569.7,2569.3,1.67183256]
[1729688544768,3.89154,2569.7,2569.3,0.7561]
[1729688544974,3.89178,2569.6,2569.3,0.7561]
[1729688545383,3.89165,2569.6,2569.3,0.7561]
[1729688546040,3.89226,2569.2,2568.9,0.8094]
[1729688546191,3.89226,2569.2,2568.7,0.8094]
[1729688546192,7.43733042,2569.2,2568.7,0.8094]
[1729688546711,3.89258,2569.0,2568.7,0.8094]
[1729688546922,3.89281,2568.9,2568.7,0.8094]
[1729688547345,3.89281,2568.9,2568.5,0.83489305]
[1729688547628,3.89281,2568.9,2568.5,4.72820305]
[1729688547843,3.54507042,2569.2,2568.5,4.72820305]
[1729688547844,3.89251,2569.1,2568.6,3.89316]
[1729688548134,3.54507042,2569.4,2568.8,3.89278]
[1729688548135,3.89213,2569.3,2568.8,3.89278]
[1729688548490,3.89227,2569.2,2568.8,3.89278]
[1729688548692,3.89211,2569.3,2568.8,3.89276]
[1729688548961,3.89204,2569.4,2568.8,0.470606]
[1729688549254,3.89227,2569.2,2568.8,4.363446]
[1729688549390,7.78464,2569.2,2568.8,0.470606]
[1729688549593,3.89245,2569.1,2568.7,4.70629]
[1729688549822,3.89227,2569.2,2568.7,4.70629]
[1729688553660,3.89208,2569.4,2568.7,4.70629]
[1729688553661,3.89211,2569.3,2568.8,3.89276]
[1729688554119,3.89232,2569.2,2568.8,3.89276]
[1729688554820,7.78471,2569.2,2568.7,4.70629]
[1729688555119,7.78466,2569.2,2568.7,4.70629]
[1729688555343,7.78466,2569.2,2568.7,5.65828894]
[1729688557132,3.89282,2568.9,2568.7,0.8133]
[1729688557331,3.89282,2568.9,2568.5,0.86319305]
[1729688557524,3.89282,2568.9,2568.5,4.75648305]
[1729688557925,4.44265,2569.0,2568.5,4.75648305]
[1729688558230,3.89265,2569.0,2568.5,4.75643305]
[1729688558435,3.89265,2569.0,2568.7,0.8048]
[1729688558826,7.78492,2569.1,2568.7,0.8048]
[1729688559224,3.89259,2569.0,2568.7,0.8048]
[1729688559445,3.89243,2569.1,2568.7,0.8048]
[1729688559759,3.89243,2569.1,2568.7,4.69778]
[1729688560158,3.89221,2569.3,2568.8,3.89279]
[1729688560348,7.78442,2569.3,2568.8,3.89279]
[1729688560546,3.89221,2569.3,2568.8,3.89279]
[1729688560861,3.89227,2569.2,2568.8,3.89279]
[1729688561921,3.89248,2569.1,2568.7,0.8048]
[1729688562433,3.89258,2569.0,2568.7,0.8048]
[1729688563666,3.89257,2569.0,2568.7,0.8048]
[1729688564475,3.89231,2569.2,2568.7,0.8048]
[1729688564704,3.89244,2569.1,2568.7,0.8048]
[1729688565022,3.89259,2569.0,2568.7,0.8048]
[1729688568671,3.89228,2569.2,2568.7,4.6978]
[1729688568672,3.89242,2569.1,2568.7,4.6978]
[1729688568885,3.89228,2569.2,2568.8,3.89285]
[1729688569551,7.78464,2569.2,2568.8,3.89285]
[1729688569780,3.89241,2569.1,2568.7,4.6978]
[1729688570886,7.78464,2569.2,2568.7,4.6978]
[1729688571074,3.89228,2569.2,2568.7,4.6978]
[1729688571440,3.89228,2569.2,2568.8,3.89278]
[1729688571635,3.89228,2569.2,2568.9,0.8296]
[1729688572884,7.78468,2569.2,2568.9,0.8296]
[1729688573055,3.89228,2569.2,2568.9,0.8296]
[1729688573580,3.89195,2569.4,2568.9,4.72223]
[1729688573736,7.784,2569.4,2568.9,4.72223]
[1729688574710,7.29828179,2569.5,2569.0,3.89242]
[1729688574983,7.29828179,2569.5,2569.2,0.7711]
[1729688575477,6.89184,2569.5,2569.2,0.7711]
[1729688576970,3.89197,2569.4,2569.2,0.7711]
[1729688578967,3.89188,2569.5,2569.2,0.7711]
[1729688579167,3.89188,2569.5,2569.2,1.237463]
[1729688579981,3.89159,2569.7,2569.2,5.129693]
[1729688580206,0.40640936,2569.8,2569.5,3.89166]
[1729688580416,0.40640936,2569.8,2569.7,0.8272]
[1729688580711,3.89098,2570.1,2569.7,0.8272]
[1729688581064,3.89106,2570.0,2569.7,0.8272]
[1729688581264,3.89106,2570.0,2569.7,0.88557158]
[1729688581504,3.89087,2570.2,2569.7,4.77701158]
[1729688581894,3.89091,2570.1,2569.7,4.77701158]
[1729688582272,3.89091,2570.1,2569.7,5.64387974]
[1729688582472,3.89091,2570.1,2569.7,1.75243974]
[1729688582703,3.89109,2570.0,2569.7,1.75243974]
[1729688583524,3.89121,2569.9,2569.7,0.88557158]
[1729688584009,3.89109,2570.0,2569.7,0.88557158]
[1729688584010,3.89106,2570.0,2569.7,0.88557158]
[1729688586093,3.89075,2570.2,2569.8,3.89134]
[1729688586321,3.8909,2570.1,2569.7,0.88557158]
[1729688586516,7.78188,2570.1,2569.7,0.88557158]
[1729688586833,7.78194,2570.1,2569.7,0.8272]
[1729688587209,3.89107,2570.0,2569.7,0.8272]
[1729688587629,3.89123,2569.9,2569.7,0.8272]
[1729688588164,3.89111,2570.0,2569.7,0.8272]
[1729688589219,3.89083,2570.2,2569.7,3.89145]
[1729688589420,3.8909,2570.1,2569.8,0.7682]
[1729688589825,6.89023,2570.6,2569.8,0.7682]
[1729688590152,3.89064,2570.3,2569.8,4.65944]
[1729688590357,4.44044,2570.4,2569.9,3.8911]
[1729688590521,4.44044,2570.4,2570.0,0.7564]
[1729688590717,3.8907,2570.3,2570.0,0.7564]
[1729688590958,3.89076,2570.2,2570.0,0.7564]
[1729688592859,3.89062,2570.3,2570.0,0.7564]
[1729688593018,3.0,2570.6,2570.0,4.64734]
[1729688593019,3.89032,2570.5,2570.0,4.64734]
[1729688593224,3.89032,2570.5,2570.1,3.89088]
[1729688593456,3.89024,2570.6,2570.2,0.752]
[1729688593457,3.89016,2570.6,2570.2,0.752]
[1729688593619,3.89039,2570.5,2570.2,0.752]
[1729688593820,3.89045,2570.4,2570.2,0.752]
[1729688595462,3.89044,2570.4,2570.1,0.05836202]
[1729688598792,3.89063,2570.3,2570.1,0.05836202]
[1729688599500,3.54507042,2570.5,2570.1,0.05836202]
[1729688599501,3.89035,2570.5,2570.1,0.05836202]
[1729688599807,3.89035,2570.5,2570.1,3.94919202]
[1729688600003,3.89002,2570.7,2570.3,0.8184]
[1729688600296,3.89002,2570.7,2570.1,4.42741222]
[1729688600297,3.88949,2571.1,2570.7,0.8184]
[1729688600480,3.8896,2571.0,2570.7,0.8184]
[1729688600680,3.88983,2570.8,2570.5,0.8184]
[1729688600988,3.89002,2570.7,2570.5,0.8184]
[1729688601693,3.89014,2570.6,2570.2,4.64143]
[1729688602870,7.7804,2570.6,2570.2,0.7507]
[1729688603079,3.89014,2570.6,2570.2,0.7507]
[1729688603803,3.89014,2570.6,2570.2,4.64143]
[1729688604588,7.78037,2570.6,2570.2,0.7507]
[1729688604805,3.89014,2570.6,2570.2,0.7507]
[1729688606510,3.88999,2570.7,2570.2,4.64131]
[1729688606708,3.88999,2570.7,2570.1,0.05836202]
[1729688606709,4.4397,2570.9,2570.5,0.7667]
[1729688606868,3.88986,2570.8,2570.5,0.7667]
[1729688607572,3.89,2570.7,2570.5,0.7667]
[1729688608003,7.7801,2570.7,2570.5,0.7667]
[1729688608310,3.89,2570.7,2570.5,0.7667]
[1729688609853,3.88963,2571.0,2570.5,4.65691]
[1729688610011,3.88963,2571.0,2570.6,3.89012]
[1729688610171,7.77897,2571.1,2570.7,0.7517]
[1729688610903,7.77897,2571.1,2570.7,4.64167]
[1729688610904,3.88947,2571.1,2570.7,4.64167]
[1729688611281,3.54507042,2571.4,2570.7,4.64167]
[1729688611282,7.43404042,2571.4,2570.7,0.7517]
[1729688611484,3.88962,2571.0,2570.7,0.7517]
[1729688611782,3.88928,2571.2,2570.8,3.88983]
[1729688611997,3.88928,2571.2,2570.8,3.94817272]
[1729688612295,3.88928,2571.2,2570.9,0.8191]
[1729688612867,3.8894,2571.1,2570.9,0.8191]
[1729688613307,3.88928,2571.2,2570.9,0.8191]
[1729688613682,4.43909,2571.3,2570.9,0.8191]
[1729688613914,3.88909,2571.3,2570.9,4.70878]
[1729688614224,3.88909,2571.3,2570.9,9.46409927]
[1729688614426,3.88887,2571.5,2571.0,3.8895]
[1729688614719,4.43862,2571.6,2571.2,0.7608]
[1729688614917,3.88885,2571.5,2571.2,0.7608]
[1729688616201,7.77775,2571.5,2571.2,0.7608]
[1729688616821,3.88894,2571.4,2571.2,0.7608]
[1729688617125,4.43872,2571.6,2571.2,0.7608]
[1729688617414,3.88884,2571.5,2571.2,0.7608]
[1729688617620,3.0,2571.9,2571.2,1.225818]
[1729688617818,3.88851,2571.7,2571.2,0.7608]
[1729688617981,3.88872,2571.6,2571.2,0.7608]
[1729688618184,3.88872,2571.6,2571.4,0.05833094]
[1729688618994,4.43878,2571.5,2571.2,0.7608]
[1729688619202,3.88864,2571.6,2571.2,0.7608]
[1729688619404,3.88864,2571.6,2571.3,0.465006]
[1729688619939,7.77737,2571.6,2571.3,0.465006]
[1729688620103,7.77737,2571.6,2571.2,0.7608]
[1729688620304,3.88864,2571.6,2571.2,0.7608]
[1729688620611,3.88864,2571.6,2571.3,0.05833208]
[1729688620612,7.77734,2571.6,2571.3,0.05833208]
[1729688620812,3.88864,2571.6,2571.3,0.05833208]
[1729688621128,3.88864,2571.6,2571.0,0.7651]
[1729688621129,3.88938,2571.1,2571.0,0.7651]
[1729688621421,3.8893,2571.2,2571.0,0.7651]
[1729688622493,3.8893,2571.2,2570.8,0.88564272]
[1729688622690,3.88968,2570.9,2570.8,0.05834272]
[1729688623023,3.54507042,2571.0,2570.8,0.05834272]
[1729688623024,3.54507042,2571.4,2570.8,0.05834272]
[1729688623323,3.8891,2571.3,2570.9,0.8046]
[1729688623842,3.8891,2571.3,2570.9,4.69428]
[1729688624014,3.0,2571.6,2570.9,5.55851327]
[1729688624198,3.88895,2571.4,2570.9,9.44810327]
[1729688624519,3.88895,2571.4,2570.9,5.55842327]
[1729688625504,3.88895,2571.4,2571.0,3.88952]
[1729688625727,3.88895,2571.4,2570.9,5.55842327]
[1729688626430,3.88932,2571.2,2570.9,0.8046]
[1729688626632,3.88949,2571.1,2570.9,0.8046]
[1729688626926,3.88962,2571.0,2570.8,0.05834272]
[1729688627625,3.88949,2571.1,2570.8,0.05834272]
[1729688627788,7.779,2571.1,2570.8,0.05834272]
[1729688627988,3.88949,2571.1,2570.8,0.05834272]
[1729688629925,7.77899,2571.1,2570.8,0.05834272]
[1729688630111,7.77896,2571.1,2570.8,0.05834272]
[1729688630446,3.88947,2571.1,2570.8,0.05834272]
[1729688630806,7.77896,2571.1,2570.8,0.05834272]
[1729688631306,3.88947,2571.1,2570.8,0.05834272]
[1729688636898,4.29569129,2571.1,2570.8,0.05834272]
[1729688640333,8.18517129,2571.1,2570.8,0.05834272]
[1729688640543,3.88954,2571.0,2570.8,0.05834272]
[1729688641740,4.29574129,2571.1,2570.8,0.05834272]
[1729688642036,8.18525129,2571.1,2570.8,0.05834272]
[1729688642224,4.29573129,2571.1,2570.8,0.05834272]
[1729688643728,0.40622129,2571.1,2570.8,0.05834272]
[1729688643932,0.40622129,2571.1,2570.8,3.94816272]
[1729688644851,0.40622129,2571.1,2570.8,4.81161899]
[1729688645001,0.40622129,2571.1,2570.9,3.88961]
[1729688645207,0.40622129,2571.1,2570.8,0.92179899]
[1729688645415,0.40622129,2571.1,2570.9,3.88967]
[1729688646915,0.40622129,2571.1,2570.8,0.92179899]
[1729688647131,4.29571129,2571.1,2570.8,0.05834272]
[1729688648148,3.88955,2571.0,2570.8,0.05834272]
[1729688650440,4.29563129,2571.1,2570.8,0.05834272]
[1729688651813,0.40622129,2571.1,2570.8,0.05834272]
[1729688653344,4.29566129,2571.1,2570.8,0.05834272]
[1729688656561,3.88968,2570.9,2570.8,0.05834272]
[1729688656853,4.43953,2571.0,2570.5,3.89015]
[1729688657440,4.43953,2571.0,2570.5,3.94849652]
[1729688658258,4.43953,2571.0,2570.6,0.7742]
[1729688659012,0.40622129,2571.1,2570.7,3.88992]
[1729688659216,0.55,2571.1,2570.7,3.88992]
[1729688660062,4.43944,2571.1,2570.6,1.63550965]
[1729688660221,0.55,2571.1,2570.8,0.8164]
[1729688660421,4.43949,2571.1,2570.8,0.8164]
[1729688660621,3.88955,2571.0,2570.8,0.8164]
[1729688664215,4.43941,2571.1,2570.8,0.8164]
[1729688664954,8.3289,2571.1,2570.8,0.8164]
[1729688665143,4.43941,2571.1,2570.8,0.8164]
[1729688665352,0.55,2571.2,2570.8,0.8164]
[1729688665543,4.43926,2571.2,2570.8,0.8164]
[1729688665746,3.88926,2571.2,2570.8,0.8164]
[1729688666057,3.88909,2571.3,2570.9,0.470638]
[1729688669491,3.88924,2571.2,2570.9,0.470638]
[1729688671159,3.88939,2571.1,2570.8,0.8164]
[1729688671361,5.63338121,2571.1,2570.8,0.8164]
[1729688672067,3.88939,2571.1,2570.8,0.8164]
[1729688672466,3.88961,2571.0,2570.8,0.8164]
[1729688672654,3.88944,2571.1,2570.8,0.8164]
[1729688674000,3.88957,2571.0,2570.8,0.8164]
[1729688674294,3.88944,2571.1,2570.8,0.8164]
[1729688675086,7.77894,2571.1,2570.8,0.8164]
[1729688676901,5.63367121,2570.9,2570.5,0.05834652]
[1729688677078,3.89068,2570.3,2569.9,0.81]
[1729688677280,3.89086,2570.2,2569.9,0.81]
[1729688680476,3.89083,2570.2,2569.9,0.81]
[1729688682992,7.78109,2570.4,2569.9,1.28015]
[1729688683268,3.89053,2570.4,2570.0,0.05835526]
[1729688683468,3.89053,2570.4,2570.1,0.8117]
[1729688684413,7.78105,2570.4,2570.1,0.8117]
[1729688685472,3.89052,2570.4,2570.1,0.8117]
[1729688686502,3.8906,2570.3,2570.1,0.8117]
[1729688687401,3.89036,2570.5,2570.1,0.8117]
[1729688687605,3.89036,2570.5,2570.1,1.33482253]
[1729688688700,3.89044,2570.4,2570.1,1.33482253]
[1729688691475,3.0,2570.9,2570.2,0.8075]
[1729688691672,3.89007,2570.7,2570.3,0.8075]
[1729688691887,3.89023,2570.6,2570.3,0.8075]
[1729688694305,3.89023,2570.6,2570.3,1.277333]
[1729688694583,3.84023,2570.6,2570.3,1.277333]
[1729688694879,3.89007,2570.7,2570.3,1.277333]
[1729688695384,3.89007,2570.7,2570.3,0.8075]
[1729688695719,7.78019,2570.7,2570.3,0.8075]
[1729688696319,3.89007,2570.7,2570.3,0.8075]
[1729688696496,7.78016,2570.7,2570.3,0.8075]
[1729688696689,3.89007,2570.7,2570.3,0.8075]
[1729688696889,3.89016,2570.6,2570.4,0.46981]
[1729688697880,4.29613782,2570.8,2570.4,0.46981]
[1729688698212,3.89006,2570.7,2570.4,0.46981]
[1729688700315,4.29613782,2570.8,2570.5,0.8055]
[1729688700482,3.88974,2570.9,2570.5,4.69578]
[1729688700685,0.40625864,2570.8,2570.6,0.905599]
[1729688701931,0.40625864,2570.8,2570.7,0.7827]
[1729688702726,3.88954,2571.0,2570.7,0.7827]
[1729688702727,5.6341684,2571.0,2570.7,0.7827]
[1729688703812,9.5238184,2571.0,2570.7,0.7827]
[1729688704049,5.6344184,2570.9,2570.7,0.7827]
[1729688704229,5.6344584,2570.8,2570.7,0.7827]
[1729688704425,3.89008,2570.7,2570.5,0.7945]
[1729688704657,5.6347084,2570.7,2570.5,0.7945]
[1729688704957,5.6344884,2570.8,2570.5,0.7945]
[1729688705155,5.6344884,2570.8,2570.5,1.652037]
[1729688706316,5.6344884,2570.8,2570.5,1.71039061]
[1729688706859,1.7446284,2570.7,2570.5,1.71039061]
[1729688707529,5.6344884,2570.8,2570.5,1.71039061]
[1729688708126,1.7446284,2570.7,2570.5,1.71039061]
[1729688708325,5.6347684,2570.6,2570.5,0.05835361]
[1729688708552,5.6346284,2570.7,2570.5,0.05835361]
[1729688708856,5.6344784,2570.8,2570.5,0.05835361]
[1729688709153,5.6344784,2570.8,2570.6,0.8274]
[1729688709359,3.88985,2570.8,2570.6,0.8274]
[1729688709853,5.6344784,2570.8,2570.6,0.8274]
[1729688710421,3.88999,2570.7,2570.6,0.8274]
[1729688710945,3.88985,2570.8,2570.6,0.8274]
[1729688711147,5.6344784,2570.8,2570.6,0.8274]
[1729688711346,3.88985,2570.8,2570.6,0.8274]
[1729688711662,9.5244484,2570.8,2570.6,0.8274]
[1729688713967,3.88999,2570.7,2570.6,0.8274]
[1729688714179,3.88984,2570.8,2570.3,0.8249]
[1729688714463,3.89067,2570.3,2570.1,0.8249]
[1729688714677,1.7446284,2570.2,2570.1,0.8249]
[1729688715160,5.6352984,2570.3,2570.1,0.8249]
[1729688715319,1.7446284,2570.3,2570.1,0.8249]
[1729688716161,5.6352884,2570.3,2570.1,0.8249]
[1729688716372,5.6353684,2570.2,2569.9,0.8009]
[1729688716746,5.6355184,2570.1,2569.8,0.8009]
[1729688716940,1.7446284,2570.1,2569.8,0.8009]
[1729688717474,5.6353884,2570.2,2569.8,0.8009]
[1729688717976,3.89076,2570.2,2569.8,4.69217]
[1729688718177,3.89062,2570.3,2569.8,8.58341]
[1729688718382,5.6354084,2570.2,2569.8,4.69214]
[1729688718666,1.7446284,2570.2,2569.8,0.8009]
[1729688718881,5.6352484,2570.3,2569.8,4.69224]
[1729688719090,5.6352484,2570.3,2569.8,8.5835]
[1729688719253,5.6352484,2570.3,2569.8,4.69216]
[1729688720186,9.5259384,2570.3,2569.8,4.69216]
[1729688720398,9.5259384,2570.3,2569.8,5.72499284]
[1729688720581,9.5259484,2570.3,2569.8,5.72499284]
[1729688720776,5.6352484,2570.3,2569.8,5.72499284]
[1729688720983,3.89082,2570.2,2569.8,1.83373284]
[1729688721294,5.6354484,2570.2,2569.8,1.83373284]
[1729688721591,5.6354484,2570.2,2569.8,5.72507284]
[1729688721796,3.89082,2570.2,2569.9,0.57250728]
[1729688722294,5.6354484,2570.2,2569.9,0.57250728]
[1729688722458,3.89082,2570.2,2569.9,0.57250728]
[1729688722657,1.7446284,2570.3,2569.9,0.57250728]
[1729688722887,5.6353084,2570.3,2569.9,0.57250728]
[1729688723758,3.89075,2570.2,2569.9,0.57250728]
[1729688726864,5.6353784,2570.2,2569.9,0.57250728]
[1729688727089,5.6353784,2570.2,2569.8,4.69224]
[1729688727892,1.7446284,2570.1,2569.8,0.8009]
[1729688728404,3.89075,2570.2,2569.7,0.05836846]
[1729688728405,1.7446284,2569.9,2569.7,0.05836846]
[1729688729063,5.6357084,2570.0,2569.7,0.05836846]
[1729688729260,3.89108,2570.0,2569.7,0.05836846]
[1729688729886,5.6355484,2570.1,2569.7,0.91904531]
[1729688730398,5.6355484,2570.1,2569.7,0.05836846]
[1729688730562,3.89092,2570.1,2569.7,0.05836846]
[1729688730762,5.6355484,2570.1,2569.7,0.05836846]
[1729688730987,3.89109,2570.0,2569.7,0.05836846]
[1729688731603,3.89075,2570.2,2569.8,5.6359484]
[1729688731780,5.6353784,2570.2,2569.9,0.7699]
[1729688733364,3.89075,2570.2,2569.9,0.7699]
[1729688733703,3.8909,2570.1,2569.9,0.7699]
[1729688733905,5.6355284,2570.1,2569.9,0.7699]
[1729688734506,3.8909,2570.1,2569.9,0.7699]
[1729688735207,5.6353884,2570.2,2569.9,0.7699]
[1729688735906,3.89091,2570.1,2569.9,0.7699]
[1729688736896,5.6355384,2570.1,2569.9,0.7699]
[1729688737291,5.6356784,2570.0,2569.7,0.84826846]
[1729688737522,3.89135,2569.8,2569.7,0.84826846]
[1729688737707,3.89135,2569.8,2569.7,0.05836846]
[1729688737917,5.6359784,2569.8,2569.7,0.05836846]
[1729688738279,3.89135,2569.8,2569.7,0.05836846]
[1729688738629,5.6358384,2569.9,2569.7,0.05836846]
[1729688739198,3.89121,2569.9,2569.7,0.05836846]
[1729688739398,3.89091,2570.1,2569.7,0.05836846]
[1729688739714,3.89091,2570.1,2569.8,0.7899]
[1729688742695,3.89083,2570.2,2569.8,1.26388385]
[1729688743150,5.6354584,2570.2,2569.8,1.26388385]
[1729688743447,5.6354384,2570.2,2569.8,1.26388385]
[1729688743614,5.6352984,2570.3,2569.8,5.15522385]
[1729688743813,3.89067,2570.3,2569.9,0.69582207]
[1729688744027,5.6350884,2570.4,2569.9,4.58694207]
[1729688744717,3.89046,2570.4,2569.9,4.58694207]
[1729688745059,3.89045,2570.4,2570.0,0.7571]
[1729688745221,5.6350784,2570.4,2570.0,0.7571]
[1729688745560,5.6350784,2570.4,2570.1,0.53440321]
[1729688746410,3.89045,2570.4,2570.1,0.53440321]
[1729688746906,5.6350784,2570.4,2570.1,0.53440321]
[1729688747730,1.7446284,2570.3,2570.1,0.53440321]
[1729688747942,1.7446284,2570.3,2570.2,0.05835777]
[1729688748308,5.6352184,2570.3,2570.2,0.05835777]
[1729688749018,3.89089,2570.1,2570.0,0.7571]
[1729688749713,3.89059,2570.3,2570.0,0.7571]
[1729688750018,3.89074,2570.2,2570.1,0.25017284]
[1729688750246,3.89074,2570.2,2570.0,0.7571]
[1729688750806,3.89089,2570.1,2570.0,0.7571]
[1729688757970,3.89089,2570.1,2569.7,0.05836846]